Cogmind - Beta 12 @@@ ROGUE MODE // 2023.05.24 @ 02:39:35 Player: snowphil Result: Destroyed by Y-45 Defender with Heavy Assault Rifle Performance ------------- Evolutions (1) 500 Regions Visited (4) 800 Robots Destroyed (13) 65 Value Destroyed (478) 478 Prototype IDs (6) 120 Alien Tech Used (0) 0 Bonus (33) 33 TOTAL SCORE: 1996 Bonus ------- Follower Combat Kills 33 Cogmind --------- Core Integrity 0/400 Matter 288/300 Energy 100/100 System Corruption 0% Temperature Cool (18) Movement Core (50) Location -9/Storage Parts ------- > --- POWER (1) -------- (None) > --- PROPULSION (2) --- (None) > --- UTILITY (4) ------ (None) > --- WEAPON (2) ------- (None) > --- INVENTORY (5) ---- Aluminum Leg Aluminum Leg Makeshift Leg Cooling System Sensor Array Peak State ------------ > --- POWER ------------ Light Nuclear Core > --- PROPULSION ------- Improved Hover Unit Improved Hover Unit > --- UTILITY ---------- Small Storage Unit Signal Interpreter Targeting Computer Makeshift Thermal Plating > --- WEAPON ----------- Particle Gun Beamcaster > --- INVENTORY -------- Light Ion Engine Makeshift Leg Improved Hover Unit Improved Hover Unit Improved Heat Sink Sensor Array Mining Laser [Rating: 22] Favorites ----------- Power Light Nuclear Core Engine Light Ion Engine Power Core Light Nuclear Core Propulsion Aluminum Leg Leg Aluminum Leg Hover Unit Improved Hover Unit Utility Small Storage Unit Device Sensor Array Storage Small Storage Unit Processor Targeting Computer Protection Makeshift Thermal Plating Weapon Particle Gun Energy Gun Particle Gun Launcher EMP Blaster Build | -11 -10 -10 -9 -9 ------- Run | Jun Mat Min Mat Sto Slots Evolved 2 | . . . 2 . Power . | . . . . . Propulsion . | . . . . . Utility 2 | . . . 2 . Weapon . | . . . . . Parts Attached 41 | 6 5 3 22 5 Power 5 | 1 1 . 3 . Engine 3 | 1 . . 2 . Core 2 | . 1 . 1 . Reactor . | . . . . . Propulsion 15 | 2 1 1 8 3 Treads . | . . . . . Leg 6 | 2 1 1 . 2 Wheel . | . . . . . Hover 9 | . . . 8 1 Flight . | . . . . . Utility 8 | 1 1 . 5 1 Device 3 | . . . 3 . Storage 1 | 1 . . . . Processor 2 | . 1 . 1 . Hackware . | . . . . . Protection 2 | . . . 1 1 Artifact . | . . . . . Weapon 13 | 2 2 2 6 1 Energy Gun 11 | 2 2 1 5 1 Energy Cannon . | . . . . . Ballistic Gun . | . . . . . Ballistic Cannon . | . . . . . Launcher 2 | . . 1 1 . Special Weapon . | . . . . . Impact Weapon . | . . . . . Slashing Weapon . | . . . . . Piercing Weapon . | . . . . . Special Melee Weapon . | . . . . . Unidentified Prototypes 2 | . . . 2 . Parts Lost 13 | . . . 6 7 Power 2 | . . . 1 1 Propulsion 8 | . . . 4 4 Utility 1 | . . . . 1 Weapon 2 | . . . 1 1 Highest Loss Streak 6 | . . . 4 6 To Critical Strikes . | . . . . . Average Slot Usage (%) 93 | . 90 100 89 79 Engine 3 | . 12 . 2 7 Core 9 | . 1 14 8 . Leg 17 | . 28 28 3 6 Hover 7 | . . . 18 12 Device 4 | . . . 11 6 Storage 12 | . 14 14 11 11 Processor 15 | . 4 14 21 22 Energy Gun 15 | . 28 16 10 8 Launcher 5 | . . 11 2 . Naked Turns 2 | . . . . 2 Heaviest Build 26 | 14 16 17 26 17 Greatest Support 33 | 20 20 20 20 33 Greatest Overweight (x) 2 | 1 . . 2 1 Average Overweight (x) . | . . . . . Largest Inventory Capacity 8 | 8 8 8 8 8 Average Capacity 7 | 7 8 8 8 7 Most Carried 8 | 7 8 8 8 7 Average Carried 7 | 3 6 7 7 5 Final Capacity 8 | 8 8 8 8 5 Final Carried 8 | 2 8 8 7 5 Class Distribution -------------------- 94% | Mutant 5% | Scavenger-Mutant Dominant Class ---------------- Mutant | -10/Materials Mutant | -10/Mines Mutant | -9/Materials Mutant | -9/Storage Resources | -11 -10 -10 -9 -9 ----------- Run | Jun Mat Min Mat Sto Matter Collected 559 | 189 43 112 215 . Remotely . | . . . . . Salvage Created 594 | . 100 168 239 87 Parts 30 | . 7 5 14 4 Haulers Intercepted . | . . . . . Recyclers Shooed . | . . . . . Parts Field Recycled . | . . . . . Retrieved Matter . | . . . . . Parts Self-Destructed . | . . . . . Prevented . | . . . . . Kills | -11 -10 -10 -9 -9 ------- Run | Jun Mat Min Mat Sto Combat Hostiles Destroyed 11 | . 2 2 5 2 Guns 9 | . 2 1 4 2 AOE 2 | . . 1 1 . Classes Destroyed 5 | . 2 1 2 . Recycler 1 | . . 1 . . Watcher 1 | . 1 . . . Grunt 7 | . 2 2 2 1 Duelist 1 | . . . 1 . Sentry 3 | . . . 2 1 Best Kill Streak 2 | . 2 2 2 1 Combat Bots Only 2 | . 2 1 2 1 Max Kills in Single Turn 1 | . 1 1 1 1 Gunslinging . | . . . . . Exploded 1 | . . 1 1 . Melee . | . . . . . Uniques/NPCs Destroyed . | . . . . . Combat | -11 -10 -10 -9 -9 -------- Run | Jun Mat Min Mat Sto Damage Taken 1554 | . 210 81 483 780 Core 447 | . 22 10 93 322 Absorbed by Shields . | . . . . . Core Remaining (%) 93 | 100 . 87 . . Volleys Fired 56 | . 8 6 31 11 Largest 2 | . 2 2 2 1 Hottest 140 | . 130 130 140 75 Shots Fired 69 | . 16 9 33 11 Gun 63 | . 16 8 28 11 Cannon . | . . . . . Launcher 6 | . . 1 5 . Special . | . . . . . Kinetic . | . . . . . Thermal 63 | . 16 8 28 11 Explosive . | . . . . . Electromagnetic 6 | . . 1 5 . Robot Hit Streak 17 | . 7 6 16 17 Robot Miss Streak 4 | . 4 1 4 1 Penetration Max . | . . . . . Secondary Targets 1 | . . 1 . . Max Gunslinging Chain 1 | . . 1 . . Shots Hit Robots 48 | . 10 7 23 8 Core Hits 22 | . 5 4 8 5 Critical Kills . | . . . . . Critical Parts Destroyed . | . . . . . Critical Strikes 1 | . . 1 . . Burn 1 | . . 1 . . Melee Attacks . | . . . . . Impact . | . . . . . Slashing . | . . . . . Piercing . | . . . . . Sneak Attacks . | . . . . . Combat Hostiles . | . . . . . Follow-up Attacks . | . . . . . Damage Inflicted 862 | . 163 132 387 180 Guns 782 | . 163 109 342 168 Cannons . | . . . . . Explosions 68 | . . 23 45 . Melee . | . . . . . Ramming 12 | . . . . 12 Kinetic . | . . . . . Thermal 782 | . 163 109 342 168 Explosive . | . . . . . Electromagnetic 68 | . . 23 45 . Impact . | . . . . . Slashing . | . . . . . Piercing . | . . . . . Highest Corruption . | . . . . . Average Corruption . | . . . . . Corruption Purged . | . . . . . Corruption Blocked . | . . . . . Overload Shots . | . . . . . Overflow Damage . | . . . . . Projectiles . | . . . . . Explosions . | . . . . . Melee . | . . . . . Knockbacks . | . . . . . Impact . | . . . . . Kinetic . | . . . . . Secondary . | . . . . . Self-Inflicted Damage 35 | . . . 30 5 Shots 2 | . . . 2 . Rammed 3 | . . . . 3 Targets Rammed 3 | . . . . 3 Kicked . | . . . . . Crushed . | . . . . . Highest Temperature 364 | . 364 258 283 152 Average Temperature 118 | . 185 109 111 48 Received Heat Transfer 576 | . 120 48 81 327 Effects 1 | . 1 . . . Energy Bleed 1 | . 1 . . . Siege Activations . | . . . . . Robots Corrupted . | . . . . . Combat Hostiles . | . . . . . Parts Fried 1 | . . . 1 . Impact Corruptions . | . . . . . Robots Melted . | . . . . . Combat Hostiles . | . . . . . Parts Melted 3 | . 1 . 2 . Heat Transferred 1850 | . 407 333 814 296 Parts Sabotaged . | . . . . . Parts Stolen . | . . . . . Parts Stripped . | . . . . . Power Chain Reactions . | . . . . . Missiles Intercepted . | . . . . . Alert | -11 -10 -10 -9 -9 ------- Run | Jun Mat Min Mat Sto Peak Influence 190 | . 72 97 142 190 Initial 27 | . . 27 2 25 Average 50 | . 21 45 51 126 Maximum Alert Level . | . . . . . Low Security (%) 100 | 100 100 100 100 100 Level 1 . | . . . . . Level 2 . | . . . . . Level 3 . | . . . . . Level 4 . | . . . . . Level 5 . | . . . . . High Security . | . . . . . Max Security . | . . . . . Squads Dispatched 6 | . 1 . 2 3 Investigation 1 | . . . . 1 Extermination . | . . . . . Reinforcement 5 | . 1 . 2 2 Assault . | . . . . . Garrison . | . . . . . Intercept . | . . . . . Searches Triggered . | . . . . . Construction Impeded . | . . . . . Haulers Reinforced . | . . . . . Active Scanning Responses . | . . . . . Cargo Convoy Interrupts . | . . . . . Stealth | -11 -10 -10 -9 -9 --------- Run | Jun Mat Min Mat Sto Distress Signals 2 | . . . 2 . Communications Jammed . | . . . . . Distress Signals . | . . . . . Times Spotted 35 | . 6 3 14 12 Peak Tracking Total 7 | . 3 2 6 7 Tactical Retreats 3 | . . 1 1 1 Traps | -11 -10 -10 -9 -9 ------- Run | Jun Mat Min Mat Sto Traps Triggered . | . . . . . Indirectly . | . . . . . Trap Hack Attempts . | . . . . . Triggered . | . . . . . Disarmed . | . . . . . Reprogrammed . | . . . . . Reused . | . . . . . Traps Extracted . | . . . . . Installed . | . . . . . Triggered . | . . . . . Machines | -11 -10 -10 -9 -9 ---------- Run | Jun Mat Min Mat Sto Machines Disabled 1 | . . . . 1 Max in Single Turn 1 | . . . . 1 Machines Repaired . | . . . . . Machines Sabotaged . | . . . . . Overloaded Fab Kills . | . . . . . Hacking | -11 -10 -10 -9 -9 --------- Run | Jun Mat Min Mat Sto Machines Accessed 13 | . 1 2 5 5 Terminals 10 | . 1 1 4 4 Fabricators . | . . . . . Repair Stations . | . . . . . Recycling Units 2 | . . . 1 1 Scanalyzers . | . . . . . Garrison Access . | . . . . . Total Hacks 35 | . 4 4 13 14 Successful 14 | . . 3 5 6 Failed 21 | . 4 1 8 8 Catastrophic 6 | . . 1 2 3 Database Lockouts . | . . . . . Manual 18 | . . 1 8 9 Terminals 30 | . 4 3 11 12 Fabricators . | . . . . . Repair Stations . | . . . . . Recycling Units 4 | . . . 2 2 Scanalyzers . | . . . . . Garrison Access . | . . . . . Terminal Hacks 9 | . . 3 3 3 Prototype ID Bank 2 | . . . 1 1 Open Door 1 | . . 1 . . Level Access Points 1 | . . 1 . . Alert Level 3 | . . 1 1 1 Registered Components 1 | . . . 1 . Zone Layout 1 | . . . . 1 Fabricator Hacks . | . . . . . Repair Station Hacks . | . . . . . Recycling Unit Hacks 2 | . . . 1 1 Retrieve Components 2 | . . . 1 1 Scanalyzer . | . . . . . Garrison Access Hacks . | . . . . . Unauthorized Hacks 3 | . . . 1 2 Terminals 1 | . . . . 1 Botnet 1 | . . . . 1 Fabricators . | . . . . . Repair Stations . | . . . . . Recycling Units 2 | . . . 1 1 Reject 2 | . . . 1 1 Scanalyzers . | . . . . . Garrison Access . | . . . . . Data Cores Recovered . | . . . . . Used . | . . . . . Hacking Detections 11 | . 1 1 4 5 Full Trace Events 1 | . . . . 1 Feedback Events . | . . . . . Feedback Blocked . | . . . . . Robot Schematics Acquired . | . . . . . Robots Built . | . . . . . Authchips . | . . . . . Time . | . . . . . Total Robot Build Rating . | . . . . . Part Schematics Acquired . | . . . . . Parts Built . | . . . . . Authchips . | . . . . . Time . | . . . . . Total Part Build Rating . | . . . . . Parts Repaired . | . . . . . Time . | . . . . . Parts Recycled . | . . . . . Recycled Matter . | . . . . . Retrieved Matter . | . . . . . Retrieved Components 11 | . . . 9 2 Parts Scanalyzed . | . . . . . Part Schematics Acquired . | . . . . . Parts Damaged . | . . . . . Bothacking | -11 -10 -10 -9 -9 ------------ Run | Jun Mat Min Mat Sto Used RIF Installer . | . . . . . Robots Hacked . | . . . . . Non-combat . | . . . . . Combat . | . . . . . Robot Hacks Applied . | . . . . . Relay Couplers Released . | . . . . . Fabnet Peak Effective % . | . . . . . Robots Rewired . | . . . . . Allies Hacked . | . . . . . Hacks Repelled . | . . . . . Allies | -11 -10 -10 -9 -9 -------- Run | Jun Mat Min Mat Sto Total Allies 3 | . . 2 1 . Largest Group 3 | . . 2 3 . Highest-Rated Group 65 | . . 50 65 . Highest-Rated Ally 31 | . . 31 31 . Total Orders 4 | . . . 4 . EXPLORE 4 | . . . 4 . Ally Attacks 11 | . . . 11 . Total Damage 116 | . . . 116 . Kills 1 | . . . 1 . Allies Corrupted . | . . . . . Allies Melted . | . . . . . Intel | -11 -10 -10 -9 -9 ------- Run | Jun Mat Min Mat Sto Robot Analysis Total . | . . . . . Derelict Logs Recovered 1 | . . 1 . . Drone Launches 4 | . . . 4 . Drone Recoveries 4 | . . . 4 . Exploration | -11 -10 -10 -9 -9 ------------- Run | Jun Mat Min Mat Sto Turns Passed 1715 | 56 227 714 553 165 Spaces Moved 1492 | 41 153 544 590 164 Core 31 | 29 . . 1 1 Treads . | . . . . . Legs 796 | 12 153 544 43 44 Wheels . | . . . . . Hover 665 | . . . 546 119 Flight . | . . . . . Fastest Speed 50 | 50 120 120 56 50 Average Speed 94 | 104 120 120 67 79 Slowest Speed 190 | 120 120 120 190 140 Overloaded Moves . | . . . . . Propulsion Burnouts . | . . . . . Robots Hopped . | . . . . . Cave-ins Triggered . | . . . . . Exploration Rate (%) 39 | 4 25 96 38 32 Regions Visited 4 Branch Regions 2 Pre-discovered Areas 1 | . . 1 . . Known Exits Taken 2 | . . 1 1 . Unknown Exits Taken 2 | 1 1 . . . Scrap Searched 2 | . . 2 . . Spaces Dug . | . . . . . Terrain Destroyed . | . . . . . Melee . | . . . . . Projectile . | . . . . . AOE . | . . . . . Terrain Rammed . | . . . . . Walls Destroyed . | . . . . . Machines Disabled . | . . . . . Actions | -11 -10 -10 -9 -9 --------- Run | Jun Mat Min Mat Sto Total 1733 | 54 181 597 713 188 Wait 83 | . 4 39 37 3 Move 1488 | 40 152 543 589 164 Hop . | . . . . . Pick Up 37 | 8 8 2 19 . Fast Attach 2 | . 1 . 1 . Attach 21 | 6 1 . 10 4 Detach 4 | . . . 2 2 Swap 18 | . 3 3 11 1 Drop 21 | . 4 4 13 . Fire 56 | . 8 6 31 11 Melee . | . . . . . Ram 3 | . . . . 3 Kick . | . . . . . Crush . | . . . . . Escape Stasis . | . . . . . Rewire . | . . . . . Trap . | . . . . . Miscellaneous . | . . . . . Route ------- -11/Junkyard -10/Materials -10/Mines (discovered 2 exits: *Mat x2) -9/Materials -9/Storage History --------- Turn | Location | Event 6 | -11/Junkyard | Discovered new exit (range 15) 57 | -11/Junkyard | Entered Materials 108 | -10/Materials | Discovered new exit (range 15) 284 | -10/Materials | Entered Mines 315 | -10/Mines | Build established: Mutant 398 | -10/Mines | Found the Drone Emporium 404 | -10/Mines | Found Prototype Device 542 | -10/Mines | Learned location of Storage (-9) 571 | -10/Mines | Discovered new exit (range 8) 825 | -10/Mines | Discovered new exit (range 7) 835 | -10/Mines | Identified exit to Materials 998 | -10/Mines | Entered Materials 998 | -9/Materials | Accompanied by 2 allies 998 | -9/Materials | Evolved 2 slots: Utility x2 999 | -9/Materials | Identified Splice Drone Bay 1003 | -9/Materials | Led the pair of lost Derelicts to an unsafe place 1459 | -9/Materials | Discovered new exit (range 10) 1461 | -9/Materials | Lost 4 parts (1p2n1w) 1548 | -9/Materials | Identified exit to Storage 1551 | -9/Materials | Entered Storage 1687 | -9/Storage | Core integrity fell below 50% 1714 | -9/Storage | Released all parts (3) 1716 | -9/Storage | Core integrity fell below 20% 1716 | -9/Storage | Destroyed by Y-45 Defender with Heavy Assault Rifle Last Messages --------------- Awaiting botnet instructions. 01647_ K-01 Serf collects debris. 01649_ Imp. Hover Unit destroyed. 01652_ ALERT: Hostiles spotted, dispatching reinforcements to Terminal S014. 01660_ Lgt. Ion Engine destroyed. 01661_ K-01 Serf collects debris. 01661_ Critical hit (Burn: +37). 01666_ K-01 Serf collects debris. 01682_ ALERT: Hostiles spotted, dispatching reinforcements to Terminal S002. 01689_ Beamcaster destroyed. 01689_ W-16 Scout destroyed. 01694_ Connecting with Door Terminal... 01698_ Imp. Aluminum Leg destroyed. 01699_ Connecting with Door Terminal... 01699_ ALERT: Suspicious activity at Terminal S008. Dispatching Investigation squad. 01712_ Mak. Thermal Plating destroyed. 01714_ Released Signal Interpreter. 01714_ Released Sml. Storage Unit. 01714_ Released Targeting Computer. 01714_ Slammed into G-47 Trooper. Map ----- +----------------------------------------------------+ | ???????????????????????###???????????????? | | ?????????????????????### ######??????????? | | ?????????????????????# #??????????? | | ?????????????????????# """ #??????????? | | ?????????????????????# """ #??????????? | | ?????????????????????#[ """ #??????????? | | ?????????????????????# #??????????? | | ?????????????????????+ """ #??????????? | | ?????????????????????# """ #??????????? | | ?????????????????????? """ #??????????? | | ???????????????????????? #???????#### | | ???????????###############+############"T" | | ???????????# | | ???????????# | | ???????????+^ | | ???????????### ########/################## | | ????????????????# #???????????? | | ????????????????# #?????????### | | ????????????????# #????????## # | | ?????????####???# #????????# | | ?????????? ??# #???######"" | | ?????????" """ ?##+##+############ #"Y | | ?????????" """ # #"" | | ???????""" """ g# + | | ??# /gY#######+####### # "" | | ?????????########@Y#????? ### ## "" | | ???????????"##### Y#????? """"" #?# ## "" | | ???????????" Y #?????????????????????? | | ???????????" ! #?????????????????????? | | ???????????"#T###+##?????????????????????? | | ????????????##??# T#?????????????????????? | | ????????????????#"##?????????????????????? | | ?????????????????????????????????????????? | | ?????????????????????????????????????????? | | ?????????????????????????????????????????? | | ?????????????????????????????????????????? | | ?????????????????????????????????????????? | | ?????????????????????????????????????????? | | ?????????????????????????????????????????? | | ?????????????????????????????????????????? | | ?????????????????????????????????????????? | | | | | | | | | | | | | | | | | | | +----------------------------------------------------+ Best States ------------- Heat Dissipation 28 Energy Generation 14 Energy Capacity 250 Matter Stores 300 Matter Capacity 300 Sight Range 16 Robot Scan Range 14 Terrain Scan Density 10 Armor Coverage 100 Resistance: TH 10 Evasion (%) 55 Targeting Accuracy 5 Item Schematics ----------------- None Robot Schematics ------------------ None Fabricated ------------ Nothing Alien Tech Used ----------------- None Achievements -------------- None Challenges ------------ None Game ------ Seed TransportHeartScanner Manual? 0 Play Time 00:46:40 Cumulative 99.6 hours Start 2023.05.24 @ 01:53:35 End 2023.05.24 @ 02:39:35 Sessions 1 Manual Loads 0 Difficulty Rogue Special Mode None Game No. 8 Rogue 6 Adventurer 0 Explorer 2 Win Type - Total 3 Types 0/0/0/3/0/0/0/0/0 Lore% 25 Gallery% 26 Achievement% 39 Wizard Run 0 Options --------- ASCII 0 Keyboard 0 Movement Mouse Keybinds 0 Fullscreen 1 Font 20/SmallcapsGlow Map View 98x59 Tactical HUD 1 Map Filters NONE Filters NONE Steam 1 RUN: b59d759c-cb73-475e-b472-cb60aab1b52b